fUST/lending_fUST_20250724
["ID","MTS","AMOUNT","RATE_DAILY","PERIOD"]
[374534411,1753341057335,-219.205835,0.0002465,7]
[374534412,1753341057344,-219.205835,0.0002465,7]
[374534413,1753341057353,-151.0,0.0002465,7]
[374534414,1753341057363,-151.0,0.0002465,7]
[374534415,1753341057373,-151.0,0.0002465,7]
[374534416,1753341057383,-151.0,0.0002465,7]
[374534417,1753341057392,-189.834121,0.0002465,7]
[374534418,1753341057402,-151.0,0.0002465,7]
[374534419,1753341057411,-151.0,0.0002465,7]
[374534420,1753341057421,-253.339352,0.0002465,7]
[374534421,1753341057430,-253.339352,0.0002465,7]
[374534422,1753341057440,-293.753354,0.0002465,7]
[374534423,1753341057449,-293.753354,0.0002465,7]
[374534424,1753341057460,-301.281041,0.0002465,7]
[374534425,1753341057469,-301.281041,0.0002465,7]
[374534426,1753341057479,-151.0,0.0002465,7]
[374534427,1753341057489,-151.0,0.0002465,7]
[374534428,1753341057499,-151.0,0.0002465,7]
[374534429,1753341057508,-151.0,0.0002465,7]
[374534430,1753341057517,-151.0,0.0002465,7]
[374534431,1753341057526,-159.408165,0.0002465,7]
[374534432,1753341057539,-452.911147,0.0002465,7]
[374534433,1753341057548,-159.408165,0.0002465,7]
[374534434,1753341057558,-452.911147,0.0002465,7]
[374534435,1753341057567,-151.0,0.0002465,7]
[374534436,1753341057577,-151.0,0.0002465,7]
[374534437,1753341057586,-697.51,0.00024657,2]
[374534438,1753341057596,-828.51,0.00024657,2]
[374534439,1753341057605,-460.0,0.00024657,2]
[374534440,1753341057615,-540.29,0.00024657,2]
[374534441,1753341057626,-300.0,0.00024657,2]
[374534442,1753341057637,-300.0,0.00024657,2]
[374534443,1753341057648,-300.0,0.00024657,2]
[374534444,1753341057658,-300.0,0.00024657,2]
[374534445,1753341057667,-427.9252346,0.00024657,2]
[374534446,1753341057678,-514.78,0.00024657,2]
[374534447,1753341057687,-659.67,0.00024657,2]
[374534448,1753341057697,-660.13,0.00024657,2]
[374534449,1753341057706,-483.85,0.00024657,2]
[374534450,1753341057716,-160.0,0.00024658,7]
[374534451,1753341057726,-151.0,0.00024658,7]
[374534452,1753341057735,-151.0,0.00024658,7]
[374534453,1753341057745,-151.0,0.00024658,7]
[374534454,1753341057759,-151.0,0.00024658,7]
[374534455,1753341057778,-151.0,0.00024658,7]
[374534456,1753341057798,-729.0,0.00024658,2]
[374534457,1753341057808,-221.1447869,0.00024658,2]
[374534458,1753341057821,-615.0,0.00024658,2]
[374534459,1753341057837,-6282.55,0.00024668,10]
[374534460,1753341057847,-150.38003459,0.00024673,2]
[374534461,1753341057856,-522.25868449,0.00024679,6]
[374534462,1753341057865,-168.0,0.0002468,2]
[374534463,1753341057875,-500.0,0.00024692,2]
[374534464,1753341057884,-987.94,0.000247,7]
[374534465,1753341057893,-1010.0,0.00024701,2]
[374534466,1753341057903,-150.217966,0.00024703,30]
[374534467,1753341057912,-189.0,0.00024703,2]
[374534468,1753341057921,-5090.07616374,0.00024718,2]
[374534469,1753341057930,-2125.87120444,0.00024726,2]
[374534470,1753341057939,-168.0,0.00024742,2]
[374534471,1753341057949,-327.0,0.00024747,2]
[374534472,1753341057958,-16448.66509595,0.00024774,2]
[374534473,1753341057968,-211.52609585,0.00024775,11]
[374534474,1753341057977,-13262.07000508,0.000248,7]
[374534475,1753341057987,-1108.43,0.000248,5]
[374534476,1753341057996,-2000.0,0.000248,2]
[374534477,1753341058006,-151.0,0.000248,7]
[374534478,1753341058015,-151.0,0.000248,7]
[374534479,1753341058024,-151.0,0.000248,7]
[374534480,1753341058037,-151.0,0.000248,7]
[374534481,1753341058047,-151.0,0.000248,7]
[374534482,1753341058056,-202.0,0.000248,12]
[374534483,1753341058065,-151.0,0.000248,7]
[374534484,1753341058074,-151.0,0.000248,7]
[374534485,1753341058083,-151.0,0.000248,7]
[374534486,1753341058092,-27999.39,0.000248,2]
[374534487,1753341058102,-151.0,0.000248,7]
[374534488,1753341058111,-151.0,0.000248,7]
[374534489,1753341058121,-151.0,0.000248,7]
[374534490,1753341058130,-151.0,0.000248,7]
[374534491,1753341058140,-278.4946,0.000248,7]
[374534492,1753341058153,-2000.0,0.000248,2]
[374534493,1753341058163,-151.0,0.000248,7]
[374534494,1753341058173,-151.0,0.000248,7]
[374534495,1753341058182,-151.0,0.000248,7]
[374534496,1753341058191,-395.835009,0.000248,7]
[374534497,1753341058201,-395.835009,0.000248,7]
[374534498,1753341058211,-7824.72819026,0.000248,2]
[374534499,1753341058220,-500.0,0.00024803,2]
[374534500,1753341058228,-2125.87120444,0.00024815,2]
[374534501,1753341058238,-308.44,0.00024842,2]
[374534502,1753341058247,-168.0,0.00024851,2]
[374534503,1753341058256,-150.217966,0.00024852,30]
[374534504,1753341058266,-168.0,0.00024883,2]
[374534505,1753341058275,-150.217966,0.00024884,10]
[374534506,1753341058290,-308.44,0.00024884,2]
[374534507,1753341058299,-150.217966,0.0002489,15]
[374534508,1753341058307,-150.217966,0.0002489,15]
[374534509,1753341058316,-150.217966,0.0002489,15]
[374534510,1753341058325,-500.0,0.0002489,2]
[374534511,1753341058334,-2961.40032091,0.000249,2]
[374534512,1753341058344,-205.0,0.000249,2]
[374534513,1753341058353,-206.0,0.000249,2]
[374534514,1753341058363,-206.0,0.000249,2]
[374534515,1753341058372,-206.0,0.000249,2]
[374534516,1753341058381,-151.0,0.000249,7]
[374534517,1753341058391,-151.0,0.000249,7]
[374534518,1753341058402,-151.0,0.000249,7]
[374534519,1753341058412,-185.112486,0.000249,7]
[374534520,1753341058421,-151.0,0.000249,7]
[374534521,1753341058430,-151.0,0.000249,7]
[374534522,1753341058439,-151.0,0.000249,7]
[374534523,1753341058448,-151.0,0.000249,7]
[374534524,1753341058457,-151.0,0.000249,7]
[374534525,1753341058466,-206.0,0.000249,2]
[374534526,1753341058475,-206.0,0.000249,2]
[374534527,1753341058484,-151.0,0.000249,7]
[374534528,1753341058493,-151.0,0.000249,7]
[374534529,1753341058503,-151.0,0.000249,7]
[374534530,1753341058512,-151.0,0.000249,7]
[374534531,1753341058521,-151.0,0.000249,7]
[374534532,1753341058533,-151.0,0.000249,7]
[374534533,1753341058543,-151.0,0.000249,7]
[374534534,1753341058552,-151.0,0.000249,7]
[374534535,1753341058562,-219.205835,0.000249,7]
[374534536,1753341058571,-219.205835,0.000249,7]
[374534537,1753341058581,-151.0,0.000249,7]
[374534538,1753341058590,-151.0,0.000249,7]
[374534539,1753341058599,-151.0,0.000249,7]
[374534540,1753341058609,-186.335054,0.000249,7]
[374534541,1753341058618,-151.0,0.000249,7]
[374534542,1753341058628,-151.0,0.000249,7]
[374534543,1753341058637,-151.0,0.000249,7]
[374534544,1753341058647,-151.0,0.000249,7]
[374534545,1753341058656,-151.0,0.000249,7]
[374534546,1753341058665,-253.339352,0.000249,7]
[374534547,1753341058754,-253.339352,0.000249,7]
[374534548,1753341058767,-293.753354,0.000249,7]
[374534549,1753341058776,-293.753354,0.000249,7]
[374534550,1753341058789,-293.753354,0.000249,7]
[374534551,1753341058799,-293.753364,0.000249,7]
[374534552,1753341058809,-151.0,0.000249,7]
[374534553,1753341058819,-271.963078,0.000249,7]
[374534554,1753341058829,-301.281041,0.000249,7]
[374534555,1753341058839,-301.281041,0.000249,7]
[374534556,1753341058850,-151.0,0.000249,7]
[374534557,1753341058860,-151.0,0.000249,7]
[374534558,1753341058870,-527.134941,0.000249,7]
[374534559,1753341058879,-527.134941,0.000249,7]
[374534560,1753341058889,-151.0,0.000249,7]
[374534561,1753341058899,-151.0,0.000249,7]
[374534562,1753341058909,-151.0,0.000249,7]
[374534563,1753341058918,-151.0,0.000249,7]
[374534564,1753341058928,-151.0,0.000249,7]
[374534565,1753341058938,-150.217966,0.000249,7]
[374534566,1753341058948,-150.217966,0.000249,2]
[374534567,1753341058957,-151.0,0.000249,7]
[374534568,1753341058967,-151.0,0.000249,7]
[374534569,1753341058976,-151.0,0.000249,7]
[374534570,1753341058986,-151.0,0.000249,7]
[374534571,1753341058995,-151.0,0.000249,7]
[374534572,1753341059004,-151.0,0.000249,7]
[374534573,1753341059015,-395.835009,0.000249,7]
[374534574,1753341059025,-395.835009,0.000249,7]
[374534575,1753341059038,-159.0,0.000249,7]
[374534576,1753341059047,-149.926599,0.000249,7]
[374534577,1753341059056,-151.0,0.000249,7]
[374534578,1753341059067,-159.408165,0.000249,7]
[374534579,1753341059076,-452.911147,0.000249,7]
[374534580,1753341059086,-159.408165,0.000249,7]
[374534581,1753341059095,-452.911147,0.000249,7]
[374534582,1753341059105,-151.0,0.000249,7]
[374534583,1753341059114,-84939.50998408,0.000249,2]
[374534584,1753341059128,-1699.10296557,0.000249,2]
[374534585,1753341059226,-460.0,0.00019178,2]
[374534586,1753341059236,-440.0,0.00019178,2]
[374534587,1753341059247,-20.0,0.00019178,2]
[374534588,1753341059256,-460.0,0.00019452,2]
[374534589,1753341059266,-460.0,0.00019452,2]
[374534590,1753341059275,-348.26418683,0.00019726,2]
[374534591,1753341059290,-111.73581317,0.00019726,2]
[374534592,1753341059299,-460.0,0.00019726,2]
[374534593,1753341059309,-460.0,0.0002,2]
[374534594,1753341059318,-282.82216959,0.00020273,2]
[374534599,1753341163240,1431.48075912,0.00018529,2]
[374534609,1753341203734,1283.10586463,0.00018,2]
[374534628,1753341842714,1696.0,0.00026027,120]
[374534629,1753341894812,202.3303243,0.00017943,2]
[374534630,1753341942092,-500.0,0.00018038,2]
[374534631,1753341942114,-160.0,0.00018043,2]
[374534632,1753341942135,-926.10400504,0.00018043,2]
[374534640,1753342027095,-569.76952222,0.00018043,2]
[374534641,1753342034140,-169.48136937,0.00018043,2]
[374534642,1753342036087,-2710.67457307,0.00018043,2]
[374534643,1753342036111,-150.0,0.00018518,2]
[374534644,1753342036140,-102.12901208,0.00018529,2]
[374534645,1753342036161,-170.00609294,0.00018944,2]
[374534646,1753342036183,-500.0,0.00018988,2]
[374534647,1753342036217,-300.0,0.00019039,2]
[374534648,1753342036246,-459.38348953,0.0001904,2]
[374534649,1753342053141,-40.61651047,0.0001904,2]
[374534650,1753342053164,-552.6017848,0.0001904,2]
[374534651,1753342053187,-215.03947182,0.0001904,2]
[374534653,1753342114897,1731.74598963,0.00017,2]
[374534656,1753342194467,185.938782,0.00013699,2]
[374534688,1753342232626,-334.89544425,0.00019038,2]
[374534690,1753342232635,-500.0,0.00019038,2]
[374534691,1753342232642,-500.0,0.00019038,2]
[374534693,1753342232650,-500.0,0.00019038,2]
[374534694,1753342232669,-1200.0,0.00019038,2]
[374534695,1753342232678,-500.0,0.00019039,2]
[374534696,1753342232686,-17790.63554902,0.00019039,2]
[374534697,1753342232697,-4415.32629687,0.00019078,2]
[374534698,1753342232707,-211.46,0.00019168,3]
[374534699,1753342232717,-634.41,0.00019168,3]
[374534700,1753342232727,-242.12103875,0.00019177,2]
[374534701,1753342232737,-460.0,0.00019178,2]
[374534702,1753342232748,-460.0,0.00019178,2]
[374534703,1753342232758,-460.0,0.00019178,2]
[374534704,1753342232767,-462.45996451,0.00019178,2]
[374534705,1753342232778,-460.0,0.00019178,2]
[374534706,1753342232787,-460.0,0.00019178,2]
[374534707,1753342232797,-460.0,0.00019178,2]
[374534708,1753342232806,-460.0,0.00019178,2]
[374534709,1753342232816,-460.0,0.00019178,2]
[374534710,1753342232826,-460.77357237,0.00019178,2]
[374534711,1753342232836,-460.0,0.00019178,2]
[374534712,1753342232846,-460.0,0.00019178,2]
[374534713,1753342232855,-460.0,0.00019178,2]
[374534714,1753342232865,-460.0,0.00019178,2]
[374534715,1753342232875,-460.0,0.00019178,2]
[374534716,1753342232885,-461.39722081,0.00019178,2]
[374534717,1753342232896,-460.0,0.00019178,2]
[374534718,1753342232905,-460.0,0.00019178,2]
[374534719,1753342232916,-462.53797899,0.00019178,2]
[374534720,1753342232926,-460.0,0.00019178,2]
[374534721,1753342232935,-460.0,0.00019178,2]
[374534722,1753342232945,-460.0,0.00019178,2]
[374534723,1753342232954,-460.0,0.00019178,2]
[374534724,1753342232964,-460.0,0.00019178,2]
[374534725,1753342232974,-460.0,0.00019178,2]
[374534726,1753342232984,-460.0,0.00019178,2]
[374534727,1753342232993,-708.25,0.00019178,2]
[374534728,1753342233005,-460.0,0.00019178,2]
[374534729,1753342233015,-460.0,0.00019178,2]
[374534730,1753342233025,-460.0,0.00019178,2]
[374534731,1753342233036,-528.66894201,0.00019178,2]
[374534732,1753342233046,-460.0,0.00019178,2]
[374534733,1753342233059,-460.92849877,0.00019178,2]
[374534734,1753342233069,-460.0,0.00019178,2]
[374534735,1753342233079,-461.85808922,0.00019178,2]
[374534736,1753342233089,-460.92394096,0.00019178,2]
[374534737,1753342233100,-562.76037301,0.00019178,2]
[374534738,1753342233110,-474.24103969,0.00019178,2]
[374534739,1753342233122,-460.0,0.00019178,2]
[374534740,1753342233133,-460.0,0.00019178,2]
[374534741,1753342233143,-460.0,0.00019178,2]
[374534742,1753342233154,-465.50452934,0.00019178,2]
[374534743,1753342233164,-434.07835565,0.00019178,2]
[374534745,1753342233174,-460.0,0.00019178,2]
[374534747,1753342233185,-277.72006337,0.00019178,2]
[374534749,1753342233195,-460.0,0.00019178,2]
[374534750,1753342233205,-460.0,0.00019178,2]
[374534751,1753342233218,-463.87890063,0.00019178,2]
[374534752,1753342233228,-460.0,0.00019178,2]
[374534753,1753342233239,-467.73022398,0.00019178,2]
[374534754,1753342233252,-461.30853,0.00019178,2]
[374534755,1753342233262,-500.0,0.00019178,2]
[374534756,1753342233272,-283.61023199,0.00019178,2]
[374534757,1753342233283,-460.0,0.00019178,2]
[374534758,1753342233294,-534.58983004,0.00019178,2]
[374534759,1753342233305,-460.0,0.00019178,2]
[374534760,1753342233317,-460.0,0.00019178,2]
[374534761,1753342233328,-460.0,0.00019178,2]
[374534762,1753342233339,-460.0,0.00019178,2]
[374534763,1753342233350,-460.0,0.00019178,2]
[374534764,1753342233361,-460.0,0.00019178,2]
[374534765,1753342233371,-460.0,0.00019178,2]
[374534766,1753342233381,-463.34055893,0.00019178,2]
[374534767,1753342233391,-460.0,0.00019178,2]
[374534768,1753342233402,-460.0,0.00019178,2]
[374534769,1753342233412,-460.0,0.00019178,2]
[374534770,1753342233423,-460.0,0.00019178,2]
[374534771,1753342233433,-533.10667816,0.00019178,2]
[374534772,1753342233444,-460.0,0.00019178,2]
[374534773,1753342233453,-305.56089704,0.00019178,2]
[374534774,1753342233463,-460.0,0.00019178,2]
[374534775,1753342233473,-460.0,0.00019178,2]
[374534776,1753342233482,-460.0,0.00019178,2]
[374534777,1753342233492,-460.0,0.00019178,2]
[374534778,1753342233505,-460.0,0.00019178,2]
[374534779,1753342233516,-460.0,0.00019178,2]
[374534780,1753342233526,-461.19285109,0.00019178,2]
[374534781,1753342233536,-460.0,0.00019178,2]
[374534782,1753342233547,-460.0,0.00019178,2]
[374534783,1753342233556,-460.0,0.00019178,2]
[374534784,1753342233566,-460.0,0.00019178,2]
[374534785,1753342233576,-460.0,0.00019178,2]
[374534786,1753342233586,-510.09670857,0.00019178,2]
[374534787,1753342233595,-460.0,0.00019178,2]
[374534788,1753342233605,-460.0,0.00019178,2]
[374534789,1753342233615,-460.0,0.00019178,2]
[374534790,1753342233625,-460.0,0.00019178,2]
[374534791,1753342233635,-457.14844608,0.00019178,2]
[374534792,1753342233644,-460.0,0.00019178,2]
[374534793,1753342233654,-460.0,0.00019178,2]
[374534794,1753342233664,-460.0,0.00019178,2]
[374534795,1753342233674,-280.54,0.00019178,2]
[374534796,1753342233684,-460.0,0.00019178,2]
[374534797,1753342233693,-460.0,0.00019178,2]
[374534798,1753342233703,-460.0,0.00019178,2]
[374534799,1753342233713,-460.0,0.00019178,2]
[374534800,1753342233723,-460.0,0.00019178,2]
[374534801,1753342233733,-460.0,0.00019178,2]
[374534802,1753342233742,-460.0,0.00019178,2]
[374534803,1753342233754,-460.0,0.00019178,2]
[374534804,1753342233767,-460.0,0.00019178,2]
[374534805,1753342233777,-460.0,0.00019178,2]
[374534806,1753342233787,-460.0,0.00019178,2]
[374534807,1753342233797,-460.0,0.00019178,2]
[374534808,1753342233807,-220.33192804,0.00019178,2]
[374534809,1753342233817,-460.0,0.00019178,2]
[374534810,1753342233826,-460.0,0.00019178,2]
[374534811,1753342233836,-460.0,0.00019178,2]
[374534812,1753342233846,-460.0,0.00019178,2]
[374534813,1753342233855,-460.0,0.00019178,2]
[374534814,1753342233864,-460.0,0.00019178,2]
[374534815,1753342233873,-460.0,0.00019178,2]
[374534816,1753342233882,-460.0,0.00019178,2]
[374534817,1753342233891,-460.0,0.00019178,2]
[374534818,1753342233900,-460.0,0.00019178,2]
[374534819,1753342233908,-460.0,0.00019178,2]
[374534820,1753342233915,-460.0,0.00019178,2]
[374534821,1753342233922,-460.0,0.00019178,2]
[374534822,1753342233931,-460.0,0.00019178,2]
[374534823,1753342233939,-460.0,0.00019178,2]
[374534824,1753342233948,-462.58682951,0.00019178,2]
[374534825,1753342233958,-460.0,0.00019178,2]
[374534826,1753342233968,-465.0139392,0.00019178,2]
[374534827,1753342233977,-463.86158314,0.00019178,2]
[374534828,1753342233987,-460.0,0.00019178,2]
[374534829,1753342233998,-168.42830948,0.00019178,2]
[374534830,1753342234008,-460.0,0.00019178,2]
[374534831,1753342234018,-460.0,0.00019178,2]
[374534832,1753342234028,-460.0,0.00019178,2]
[374534833,1753342234037,-1958.35,0.00019178,2]
[374534834,1753342234047,-460.0,0.00019178,2]
[374534835,1753342234057,-460.0,0.00019178,2]
[374534836,1753342234070,-460.0,0.00019178,2]
[374534837,1753342234079,-460.0,0.00019178,2]
[374534838,1753342234089,-460.0,0.00019178,2]
[374534839,1753342234099,-460.0,0.00019178,2]
[374534840,1753342234109,-460.0,0.00019178,2]
[374534841,1753342234119,-460.0,0.00019178,2]
[374534842,1753342234130,-460.0,0.00019178,2]
[374534843,1753342234142,-460.0,0.00019178,2]
[374534844,1753342234153,-460.0,0.00019178,2]
[374534845,1753342234163,-460.0,0.00019178,2]
[374534846,1753342234174,-460.0,0.00019178,2]
[374534847,1753342234184,-460.0,0.00019178,2]
[374534848,1753342234194,-460.0,0.00019178,2]
[374534849,1753342234203,-460.0,0.00019178,2]
[374534850,1753342234214,-213.82,0.00019178,2]
[374534851,1753342234224,-322.87988812,0.00019178,2]
[374534852,1753342234234,-460.0,0.00019178,2]
[374534853,1753342234244,-460.0,0.00019178,2]
[374534854,1753342234255,-460.0,0.00019178,2]
[374534855,1753342234265,-460.0,0.00019178,2]
[374534856,1753342234275,-460.0,0.00019178,2]
[374534857,1753342234284,-460.0,0.00019178,2]
[374534858,1753342234294,-460.0,0.00019178,2]
[374534859,1753342234304,-460.0,0.00019178,2]
[374534860,1753342234315,-460.0,0.00019178,2]
[374534861,1753342234325,-460.0,0.00019178,2]
[374534862,1753342234336,-460.0,0.00019178,2]
[374534863,1753342234347,-460.0,0.00019178,2]
[374534864,1753342234357,-460.0,0.00019178,2]
[374534865,1753342234367,-470.61095494,0.00019178,2]
[374534866,1753342234378,-460.0,0.00019178,2]
[374534867,1753342234388,-460.0,0.00019178,2]
[374534868,1753342234398,-460.0,0.00019178,2]
[374534869,1753342234408,-460.0,0.00019178,2]
[374534870,1753342234418,-460.0,0.00019178,2]
[374534871,1753342234428,-460.0,0.00019178,2]
[374534872,1753342234438,-460.0,0.00019178,2]
[374534873,1753342234448,-460.0,0.00019178,2]
[374534874,1753342234458,-460.0,0.00019178,2]
[374534875,1753342234468,-460.0,0.00019178,2]
[374534876,1753342234478,-559.15500909,0.00019178,2]
[374534877,1753342234631,-460.0,0.00019178,2]
[374534878,1753342234645,-460.0,0.00019178,2]
[374534879,1753342234655,-720.96,0.00019178,2]
[374534880,1753342234666,-720.96,0.00019178,2]
[374534881,1753342234676,-720.96,0.00019178,2]
[374534882,1753342234686,-720.96,0.00019178,2]
[374534883,1753342234696,-720.96,0.00019178,2]
[374534884,1753342234707,-720.96,0.00019178,2]
[374534885,1753342234718,-460.0,0.00019178,2]
[374534886,1753342234727,-720.96,0.00019178,2]
[374534887,1753342234737,-461.66145791,0.00019178,2]
[374534888,1753342234748,-720.96,0.00019178,2]
[374534889,1753342234758,-720.96,0.00019178,2]
[374534890,1753342234768,-720.96,0.00019178,2]
[374534891,1753342234778,-720.96,0.00019178,2]
[374534892,1753342234787,-460.0,0.00019178,2]
[374534893,1753342234797,-720.96,0.00019178,2]
[374534894,1753342234807,-460.0,0.00019178,2]
[374534895,1753342234818,-460.0,0.00019178,2]
[374534896,1753342234827,-720.96,0.00019178,2]
[374534897,1753342234837,-720.96,0.00019178,2]
[374534898,1753342234847,-460.0,0.00019178,2]
[374534899,1753342234856,-720.96,0.00019178,2]
[374534900,1753342234866,-720.96,0.00019178,2]
[374534901,1753342234875,-720.96,0.00019178,2]
[374534902,1753342234885,-720.96,0.00019178,2]
[374534903,1753342234895,-720.96,0.00019178,2]
[374534904,1753342234905,-720.96,0.00019178,2]
[374534905,1753342234915,-460.0,0.00019178,2]
[374534906,1753342234924,-720.96,0.00019178,2]
[374534907,1753342234934,-720.96,0.00019178,2]
[374534908,1753342234944,-720.96,0.00019178,2]
[374534909,1753342234954,-720.99908038,0.00019178,2]
[374534910,1753342234963,-460.0,0.00019178,2]
[374534911,1753342234973,-460.0,0.00019178,2]
[374534912,1753342234986,-460.0,0.00019178,2]
[374534913,1753342234995,-460.0,0.00019178,2]
[374534914,1753342235006,-460.0,0.00019178,2]
[374534915,1753342235016,-460.0,0.00019178,2]
[374534916,1753342235026,-460.0,0.00019178,2]
[374534917,1753342235035,-460.0,0.00019178,2]
[374534918,1753342235045,-460.0,0.00019178,2]
[374534919,1753342235054,-397.57567652,0.00019178,2]
[374534920,1753342235067,-778.53,0.00019178,2]
[374534921,1753342235077,-460.0,0.00019178,2]
[374534922,1753342235086,-1316.68,0.00019178,2]
[374534923,1753342235095,-460.0,0.00019178,2]
[374534924,1753342235105,-461.31705745,0.00019178,2]
[374534925,1753342235115,-225.34999022,0.00019178,2]
[374534926,1753342235124,-460.0,0.00019178,2]
[374534927,1753342235135,-460.0,0.00019178,2]
[374534928,1753342235145,-460.0,0.00019178,2]
[374534929,1753342235155,-460.0,0.00019178,2]
[374534930,1753342235165,-460.0,0.00019178,2]
[374534931,1753342235174,-460.0,0.00019178,2]
[374534932,1753342235184,-460.0,0.00019178,2]
[374534933,1753342235193,-462.2827953,0.00019178,2]
[374534934,1753342235204,-460.0,0.00019178,2]
[374534935,1753342235214,-462.45773506,0.00019178,2]
[374534936,1753342235224,-1455.7,0.00019178,2]
[374534937,1753342235234,-460.0,0.00019178,2]
[374534938,1753342235243,-460.0,0.00019178,2]
[374534939,1753342235254,-205.3792598,0.00019178,2]
[374534940,1753342235263,-460.0,0.00019178,2]
[374534941,1753342235273,-460.0,0.00019178,2]
[374534942,1753342235283,-460.0,0.00019178,2]
[374534943,1753342235292,-460.0,0.00019178,2]
[374534944,1753342235302,-460.0,0.00019178,2]
[374534945,1753342235312,-418.81516423,0.00019178,2]
[374534946,1753342235322,-460.0,0.00019178,2]
[374534947,1753342235332,-460.0,0.00019178,2]
[374534948,1753342235342,-460.0,0.00019178,2]
[374534949,1753342235352,-460.0,0.00019178,2]
[374534950,1753342235362,-460.0,0.00019178,2]
[374534951,1753342235372,-1022.23,0.00019178,2]
[374534952,1753342235381,-460.0,0.00019178,2]
[374534953,1753342235391,-460.0,0.00019178,2]
[374534954,1753342235400,-460.0,0.00019178,2]
[374534955,1753342235409,-460.0,0.00019178,2]
[374534956,1753342235419,-460.0,0.00019178,2]
[374534957,1753342235428,-460.0,0.00019178,2]
[374534958,1753342235438,-460.0,0.00019178,2]
[374534959,1753342235447,-460.0,0.00019178,2]
[374534960,1753342235457,-460.0,0.00019178,2]
[374534961,1753342235466,-460.0,0.00019178,2]
[374534962,1753342235475,-460.0,0.00019178,2]
[374534963,1753342235485,-460.0,0.00019178,2]
[374534964,1753342235494,-2645.61,0.00019178,2]
[374534965,1753342235504,-460.0,0.00019178,2]
[374534966,1753342235514,-237.09,0.00019178,2]
[374534967,1753342235523,-460.0,0.00019178,2]
[374534968,1753342235533,-460.0,0.00019178,2]
[374534969,1753342235543,-460.0,0.00019178,2]
[374534970,1753342235552,-561.56,0.00019178,2]
[374534971,1753342235562,-460.0,0.00019178,2]
[374534972,1753342235571,-460.0,0.00019178,2]
[374534973,1753342235581,-460.0,0.00019178,2]
[374534974,1753342235590,-460.0,0.00019178,2]
[374534975,1753342235599,-460.0,0.00019178,2]
[374534976,1753342235608,-460.0,0.00019178,2]
[374534977,1753342235617,-460.0,0.00019178,2]
[374534978,1753342235627,-460.0,0.00019178,2]
[374534979,1753342235636,-460.0,0.00019178,2]
[374534980,1753342235646,-460.0,0.00019178,2]
[374534981,1753342235654,-460.0,0.00019178,2]
[374534982,1753342235663,-460.0,0.00019178,2]
[374534983,1753342235672,-460.0,0.00019178,2]
[374534984,1753342235682,-460.0,0.00019178,2]
[374534985,1753342235693,-460.0,0.00019178,2]
[374534986,1753342235702,-460.0,0.00019178,2]
[374534987,1753342235712,-460.0,0.00019178,2]